Cogmind - Beta 16 @@@ ROGUE MODE // 2025.10.29 @ 19:11:14 Player: Salivanth Result: Self-destructed Performance ------------- Evolutions (1) 500 Regions Visited (3) 600 Robots Destroyed (40) 200 Value Destroyed (1245) 1245 Prototype IDs (2) 40 Alien Tech Used (0) 0 Bonus (0) 0 TOTAL SCORE: 2585 Bonus ------- None Cogmind --------- Core Integrity 161/400 Matter 300/300 Energy 100/100 System Corruption 2% Temperature Cool (0) Movement Core (100) Ox1 Location -9/Storage Parts ------- > --- POWER (1) -------- (None) > --- PROPULSION (2) --- (None) > --- UTILITY (3) ------ Small Storage Unit > --- WEAPON (3) ------- (None) > --- INVENTORY (8) ---- Aluminum Leg Aluminum Leg Heat Sink Terrain Scan Processor Improved Targeting Computer Hardened Light Armor Plating Hacking Suite Peak State ------------ > --- POWER ------------ Light Ion Engine > --- PROPULSION ------- Aluminum Leg Aluminum Leg > --- UTILITY ---------- Heat Sink Small Storage Unit Signal Interpreter > --- WEAPON ----------- Advanced Beam Rifle Advanced Beam Rifle Improved Assault Rifle > --- INVENTORY -------- Improved Ion Engine Armored Treads Armored Treads Armored Treads Aluminum Leg Light Armor Plating Small Laser Grenade Launcher [Rating: 18] Favorites ----------- Power Light Ion Engine Engine Light Ion Engine Propulsion Aluminum Leg Leg Aluminum Leg Utility Small Storage Unit Device Heat Sink Storage Small Storage Unit Processor Signal Interpreter Protection Light Armor Plating Weapon Small Laser Energy Gun Small Laser Ballistic Gun Improved Assault Rifle Launcher Grenade Launcher Build | -11 -10 -9 -9 ------- Run | Yrd Mat Mat Sto Slots Evolved 2 | . . 2 . Power . | . . . . Propulsion . | . . . . Utility 1 | . . 1 . Weapon 1 | . . 1 . Parts Attached 32 | 6 4 16 6 Power 4 | 1 1 1 1 Engine 4 | 1 1 1 1 Core . | . . . . Reactor . | . . . . Propulsion 9 | 2 1 3 3 Treads . | . . . . Leg 9 | 2 1 3 3 Wheel . | . . . . Hover . | . . . . Flight . | . . . . Utility 10 | 1 2 5 2 Device 5 | . . 4 1 Storage 2 | 1 1 . . Processor 2 | . 1 . 1 Hackware . | . . . . Protection 1 | . . 1 . Artifact . | . . . . Weapon 9 | 2 . 7 . Energy Gun 7 | 2 . 5 . Energy Cannon . | . . . . Ballistic Gun 1 | . . 1 . Ballistic Cannon . | . . . . Launcher 1 | . . 1 . Special Weapon . | . . . . Impact Weapon . | . . . . Slashing Weapon . | . . . . Piercing Weapon . | . . . . Special Melee Weapon . | . . . . Unidentified Prototypes 2 | . . 2 . Parts Lost 10 | . . 1 9 Power 2 | . . . 2 Propulsion 2 | . . . 2 Utility 3 | . . 1 2 Weapon 3 | . . . 3 Highest Loss Streak 8 | . . 1 8 To Critical Strikes . | . . . . Average Backups 6 | 1 2 7 7 Power . | . . . . Propulsion 2 | . . 3 2 Utility 2 | . . . 4 Weapon 1 | . 1 1 . Tool/Special . | . . . . Unused Backups 9 | . . 3 6 Power . | . . . . Propulsion 4 | . . 3 1 Utility 5 | . . . 5 Weapon . | . . . . Tool/Special . | . . . . Average Slot Usage (%) 95 | . 92 97 94 Engine 10 | . 13 11 10 Leg 22 | . 28 22 21 Device 8 | . . 8 11 Storage 11 | . 17 9 11 Processor 9 | . 4 11 9 Energy Gun 28 | . 27 25 31 Ballistic Gun 1 | . . 3 . Launcher 1 | . . 4 . Peak Build Rating 18 | 6 7 18 15 Average Rating 13 | 4 6 15 13 On Entrance 6 | . 6 7 14 Avg Prop Armor Cover (%) . | . . . . Naked Turns . | . . . . Heaviest Build 20 | 11 12 20 18 Greatest Support 20 | 20 20 20 20 Greatest Overweight (x) 1 | 1 . . 1 Average Overweight (x) . | . . . . Largest Inventory Capacity 8 | 8 8 8 8 Average Capacity 7 | 7 8 7 8 Most Carried 8 | 5 5 8 8 Average Carried 6 | 2 2 7 7 Final Capacity 8 | 8 8 8 8 Final Carried 8 | 2 3 8 7 Class Distribution -------------------- 35% | Scavenger-Gunner 31% | Gunner 20% | Mutant 6% | Scavenger-Skirmisher 4% | Tank Dominant Class ---------------- Mutant | -10/Materials Gunner | -9/Materials Scavenger-Gunner | -9/Storage Resources | -11 -10 -9 -9 ----------- Run | Yrd Mat Mat Sto Matter Collected 678 | 260 20 353 45 Remotely . | . . . . Salvage Created 1448 | . 172 873 403 Parts 78 | . 7 43 28 Haulers Intercepted 1 | . . 1 . Recyclers Shooed 1 | . . 1 . Parts Field Recycled . | . . . . Retrieved Matter . | . . . . Parts Self-Destructed . | . . . . Prevented . | . . . . Parts Restored . | . . . . Kills | -11 -10 -9 -9 ------- Run | Yrd Mat Mat Sto Combat Hostiles Destroyed 32 | . 3 19 10 Guns 29 | . 3 16 10 AOE 3 | . . 3 . Classes Destroyed 7 | . 2 4 1 Worker 2 | . . 2 . Hauler 1 | . . 1 . Watcher 5 | . 2 1 2 Swarmer 2 | . . . 2 Grunt 23 | . 3 14 6 Brawler 2 | . . 2 . Sentry 5 | . . 3 2 Best Kill Streak 9 | . 2 9 3 Combat Bots Only 6 | . 2 6 3 Max Kills in Single Turn 2 | . 2 2 1 Gunslinging 1 | . 1 1 . Exploded 1 | . . 1 . Melee . | . . . . Uniques/NPCs Destroyed . | . . . . Combat | -11 -10 -9 -9 -------- Run | Yrd Mat Mat Sto Hostile Shots Fired 223 | . 15 86 122 Missed 66 | . 3 23 40 Hits 157 | . 12 63 82 Melee 3 | . . 3 . Projectile 154 | . 12 60 82 Critical Strikes 5 | . . 4 1 Damage Taken 1713 | . 160 818 735 Core 272 | . 33 90 149 Absorbed by Shields . | . . . . Regen/Repaired (Parts) 34 | . 34 . . Core Remaining (%) 93 | 100 86 . . Volleys Fired 85 | . 10 47 28 Largest 3 | . 2 3 3 Hottest 162 | . 80 162 141 Shots Fired 210 | . 20 117 73 Gun 202 | . 20 109 73 Cannon . | . . . . Launcher 8 | . . 8 . Special . | . . . . Kinetic 16 | . . 16 . Thermal 176 | . 10 93 73 Explosive 8 | . . 8 . Electromagnetic 10 | . 10 . . Robot Hit Streak 12 | . 6 12 8 Robot Miss Streak 7 | . 1 7 3 Penetration Max . | . . . . Secondary Targets 6 | . 1 5 . Max Gunslinging Chain 1 | . 1 1 . Shots Hit Robots 133 | . 15 72 46 Core Hits 60 | . 9 32 19 Critical Kills . | . . . . Critical Parts Destroyed . | . . . . Critical Strikes 4 | . . 3 1 Burn 4 | . . 3 1 Melee Attacks . | . . . . Impact . | . . . . Slashing . | . . . . Piercing . | . . . . Sneak Attacks . | . . . . Combat Hostiles . | . . . . Follow-up Attacks . | . . . . Damage Inflicted 2507 | . 208 1625 674 Guns 2046 | . 208 1174 664 Cannons . | . . . . Explosions 451 | . . 451 . Melee . | . . . . Ramming 10 | . . . 10 Kinetic 136 | . . 136 . Thermal 1789 | . 87 1038 664 Explosive 451 | . . 451 . Electromagnetic 121 | . 121 . . Impact . | . . . . Slashing . | . . . . Piercing . | . . . . Highest Corruption 2 | . . 2 2 Average Corruption 2 | . . 2 2 Corruption Purged . | . . . . Corruption Blocked . | . . . . Effects 15 | . . 7 8 Message Errors 5 | . . 2 3 Matter Fused 2 | . . . 2 Heat Flow Errors 1 | . . . 1 Energy Discharges 1 | . . 1 . Data Loss (minor) 2 | . . 2 . Data Loss (major) 1 | . . 1 . Alerts 1 | . . . 1 Weapon Failures 2 | . . 1 1 Overload Shots . | . . . . Overflow Damage 8 | . . 8 . Projectiles . | . . . . Explosions 8 | . . 8 . Melee . | . . . . Knockbacks . | . . . . Impact . | . . . . Kinetic . | . . . . Secondary . | . . . . Self-Inflicted Damage 9 | . . 9 . Shots 1 | . . 1 . Rammed . | . . . . Targets Rammed 5 | . . . 5 Kicked 5 | . . . 5 Crushed . | . . . . Highest Temperature 477 | . 186 477 385 Average Temperature 146 | . 71 178 117 Received Heat Transfer 594 | . 90 405 99 Effects 5 | . . 4 1 Shutdowns 2 | . . 2 . Energy Bleed 1 | . . 1 . Interference 1 | . . 1 . Short Circuit 1 | . . . 1 Siege Activations . | . . . . Martial Activations . | . . . . Shielding Activations . | . . . . Robots Disrupted . | . . . . Combat Hostiles . | . . . . Robots Corrupted . | . . . . Combat Hostiles . | . . . . Parts Fried 1 | . 1 . . Impact Corruptions . | . . . . Robots Melted . | . . . . Combat Hostiles . | . . . . Parts Melted 8 | . . 3 5 Heat Transferred 3853 | . 200 2199 1454 Parts Sabotaged . | . . . . Parts Stolen . | . . . . Parts Stripped . | . . . . Power Chain Reactions . | . . . . Alert | -11 -10 -9 -9 ------- Run | Yrd Mat Mat Sto Maximum Alert Level 1 | . . 1 . Low Security (%) 80 | 100 100 51 100 Level 1 19 | . . 48 . Level 2 . | . . . . Level 3 . | . . . . Level 4 . | . . . . Level 5 . | . . . . High Security . | . . . . Max Security . | . . . . Peak Influence 398 | . 88 398 192 Initial 164 | . . 23 164 Average 141 | . 51 190 137 Influence Increases 992 | . 126 606 260 Destroy 0b10 Robot/C 640 | . 60 380 200 Destroy 0b10 Robot/NC 40 | . 10 20 10 Destroy Leader 152 | . 24 94 34 Successful Hack 31 | . 17 . 14 Disable Machine 15 | . . 15 . Destroy Structure 39 | . . 37 2 Lose Combat Pursuer 75 | . 15 60 . Influence Decreases 904 | . 70 272 562 Entered New Map 259 | . . 33 226 Time Decay 545 | . 70 229 246 Lost Part 100 | . . 10 90 Squads Dispatched 3 | . 1 1 1 Investigation 1 | . . . 1 Extermination . | . . . . Reinforcement 2 | . 1 1 . Assault . | . . . . Garrison . | . . . . Intercept . | . . . . Searches Triggered . | . . . . Construction Impeded . | . . . . Haulers Reinforced . | . . . . Active Scanning Responses . | . . . . Cargo Convoy Interrupts . | . . . . Stealth | -11 -10 -9 -9 --------- Run | Yrd Mat Mat Sto Distress Signals 2 | . . 1 1 Communications Jammed . | . . . . Distress Signals . | . . . . Times Spotted 53 | . 7 26 20 Peak Tracking Total 7 | . 4 5 7 Tactical Retreats 3 | . 1 2 . Traps | -11 -10 -9 -9 ------- Run | Yrd Mat Mat Sto Traps Triggered 1 | . . . 1 Indirectly . | . . . . Trap Hack Attempts . | . . . . Triggered . | . . . . Disarmed . | . . . . Reprogrammed . | . . . . Reused . | . . . . Traps Extracted . | . . . . Installed . | . . . . Triggered . | . . . . Machines | -11 -10 -9 -9 ---------- Run | Yrd Mat Mat Sto Machines Disabled 1 | . . 1 . Max in Single Turn 1 | . . 1 . Machines Repaired . | . . . . Machines Dismantled . | . . . . Machines Sabotaged . | . . . . Overloaded Fab Kills . | . . . . Hacking | -11 -10 -9 -9 --------- Run | Yrd Mat Mat Sto Machines Accessed 9 | . 3 1 5 Terminals 8 | . 2 1 5 Fabricators . | . . . . Repair Stations 1 | . 1 . . Recycling Units . | . . . . Scanalyzers . | . . . . Garrison Access . | . . . . Total Hacks 30 | . 12 4 14 Successful 20 | . 11 2 7 Failed 10 | . 1 2 7 Catastrophic . | . . . . Database Lockouts . | . . . . Manual . | . . . . Terminals 23 | . 5 4 14 Fabricators . | . . . . Repair Stations 7 | . 7 . . Recycling Units . | . . . . Scanalyzers . | . . . . Garrison Access . | . . . . Terminal Hacks 13 | . 4 2 7 Robot Schematic 1 | . . . 1 Open Door 4 | . . . 4 Terminal Index 1 | . . . 1 Alert Level 1 | . 1 . . Locate Traps 3 | . 1 1 1 Maintenance Status 1 | . 1 . . Zone Layout 2 | . 1 1 . Fabricator Hacks . | . . . . Repair Station Hacks 7 | . 7 . . Scan Component 4 | . 4 . . Repair 3 | . 3 . . Recycling Unit Hacks . | . . . . Scanalyzer . | . . . . Garrison Access Hacks . | . . . . Unauthorized Hacks . | . . . . Terminals . | . . . . Fabricators . | . . . . Repair Stations . | . . . . Recycling Units . | . . . . Scanalyzers . | . . . . Garrison Access . | . . . . Data Cores Recovered . | . . . . Used . | . . . . Hacking Detections 7 | . 3 1 3 Full Trace Events 1 | . . . 1 Feedback Events . | . . . . Feedback Blocked . | . . . . Robot Schematics Acquired 1 | . . . 1 Robots Built . | . . . . Authchips . | . . . . Time . | . . . . Total Robot Build Rating . | . . . . Part Schematics Acquired . | . . . . Parts Built . | . . . . Authchips . | . . . . Time . | . . . . Total Part Build Rating . | . . . . Part Studies Acquired . | . . . . Parts Repaired 3 | . 3 . . Time 78 | . 78 . . Parts Recycled . | . . . . Recycled Matter . | . . . . Retrieved Matter . | . . . . Retrieved Components . | . . . . Parts Scanalyzed . | . . . . Part Schematics Acquired . | . . . . Parts Damaged . | . . . . Bothacking | -11 -10 -9 -9 ------------ Run | Yrd Mat Mat Sto Used RIF Installer . | . . . . Robots Hacked . | . . . . Non-combat . | . . . . Combat . | . . . . Robot Hacks Applied . | . . . . Relay Couplers Released . | . . . . Fabnet Peak Effective % . | . . . . Robots Rewired . | . . . . Allies Hacked . | . . . . Hacks Repelled . | . . . . Allies | -11 -10 -9 -9 -------- Run | Yrd Mat Mat Sto Total Allies . | . . . . Largest Group . | . . . . Highest-Rated Group . | . . . . Highest-Rated Ally . | . . . . Total Orders . | . . . . Ally Attacks . | . . . . Total Damage . | . . . . Kills . | . . . . Allies Corrupted . | . . . . Allies Melted . | . . . . Intel | -11 -10 -9 -9 ------- Run | Yrd Mat Mat Sto Active Infowar (turns) 368 | . . . 368 Sensors 368 | . . . 368 Robot Analysis Total . | . . . . Derelict Logs Recovered . | . . . . Drone Launches . | . . . . Drone Recoveries . | . . . . Exploration | -11 -10 -9 -9 ------------- Run | Yrd Mat Mat Sto Turns Passed 1309 | 58 183 536 532 Spaces Moved 711 | 48 99 239 325 Core 28 | 19 . . 9 Treads . | . . . . Legs 683 | 29 99 239 316 Wheels . | . . . . Hover . | . . . . Flight . | . . . . Fastest Speed 50 | 50 120 120 100 Average Speed 118 | 95 120 120 119 Slowest Speed 190 | 190 120 120 190 Overloaded Moves . | . . . . Propulsion Burnouts . | . . . . Robots Hopped . | . . . . Potential Cave-ins . | . . . . Cave-ins Triggered . | . . . . Exploration Rate (%) 29 | 3 30 24 59 Regions Visited 3 Branch Regions 1 Pre-discovered Areas 1 | . . . 1 Known Exits Taken 2 | . 1 1 . Unknown Exits Taken 1 | 1 . . . Scrap Searched . | . . . . Spaces Dug . | . . . . Terrain Destroyed 55 | . . 55 . Melee . | . . . . Projectile 1 | . . 1 . AOE 54 | . . 54 . Terrain Rammed . | . . . . Walls Destroyed . | . . . . Machines Disabled . | . . . . Actions | -11 -10 -9 -9 --------- Run | Yrd Mat Mat Sto Total 1005 | 60 143 391 411 Wait 104 | . 23 53 28 Move 708 | 47 98 238 325 Hop . | . . . . Pick Up 44 | 7 6 21 10 Fast Attach 1 | 1 . . . Attach 13 | 5 4 3 1 Detach . | . . . . Swap 23 | . 1 17 5 Drop 22 | . 1 12 9 Fire 85 | . 10 47 28 Melee . | . . . . Ram . | . . . . Kick 5 | . . . 5 Crush . | . . . . Escape Stasis . | . . . . Rewire . | . . . . Trap . | . . . . Miscellaneous . | . . . . Route ------- -11/Scrapyard -10/Materials -9/Materials -9/Storage History --------- Turn | Location | Event 15 | -11/Scrapyard | Discovered new exit (range 16) 59 | -11/Scrapyard | Entered Materials 170 | -10/Materials | Discovered new exit (range 16) 189 | -10/Materials | Repaired Lgt. Ion Engine 189 | -10/Materials | Repaired EM Pulse Gun 215 | -10/Materials | Repaired Aluminum Leg 241 | -10/Materials | Identified exit to Materials 242 | -10/Materials | Entered another Materials area 242 | -9/Materials | Evolved 2 slots: Utility x1, Weapon x1 556 | -9/Materials | Build established: Gunner 749 | -9/Materials | Discovered new exit (range 14) 777 | -9/Materials | Identified exit to Storage 778 | -9/Materials | Entered Storage 899 | -9/Storage | Learned location of Armory (-4) 1293 | -9/Storage | Core integrity fell below 50% 1310 | -9/Storage | Self-destructed Last Messages --------------- 01271_ M-13 Machinist repairs S-10 Pest Lgt. Ion Engine. 01273_ K-01 Serf collects debris. 01273_ Kicked S-10 Pest out of the way. 01275_ Kicked S-10 Pest. 01277_ K-01 Serf collects debris. 01277_ Kicked S-10 Pest. 01278_ Kicked S-10 Pest out of the way. 01283_ Sensor Array destroyed. 01283_ Imp. Targeting Computer destroyed. 01285_ K-01 Serf destroyed. 01289_ Aluminum Leg destroyed. 01289_ Sml. Laser destroyed. 01290_ M-13 Machinist repairs S-10 Pest. 01291_ Broken Ion Engine destroyed. 01297_ Aluminum Leg destroyed. 01299_ System corrupted: IFF burst signal emitted. 01308_ M-13 Machinist resupplies. 01309_ Sml. Laser destroyed. Map ----- +----------------------------------------------------+ | ????????????????????#! !##"T """ ##########???? | | ????????????????????#! !##"" """ =#????????????? | | ????????????????????#! !#### !%#???????????? | | ????????????????????#! !#??# """ ##???????????? | | ????????????????????#####??# """ #????????????? | | ???????????????????????????# """ #????????????? | | ???????????????????????????# #????????????? | | ???????????????????????????####" "###????????????? | | ??????????????????????????????#"R"#??????????????? | | ???????????????????????????????""????????????????? | | ?????????????????????????????????????????????????? | | ?????????????????????????????????????????????????? | | ?????????????????????????????????????????????????? | | ?????????????????????????????????????????????????? | | ?????????????????????????????????????????????????? | | ?????????????????????????????????????????????????? | | #?????????????????##?????????????????????????????? | | #????????????????#"""????????????????????????????? | | ???###############"R"#???????????????????????????? | | ???# # ##"m"######??????????????????????? | | ???# # # ! ??????????????????????? | | #### # # #??????????????????????? | | /% # # #??????????????????????? | | #### = # #a Y #??????????????????????? | | ???# %= / + """ """s#??????????????????????? | | #### * # # """ """@#??????????????????????? | | # # # """ """s#??????????????????????? | | # # / gg ss #??????????????????????? | | ########## ###########??????????????????????? | | #????????# #????????????????????????????????? | | #????????# #????????????????????????????????? | | ####????????# #????????????????????????????????? | | ????????????# #????????????????????????????????? | | ????????????# #????????????????????????????????? | | ????????????# #????????????????????????????????? | | ????????????# #????????????????????????????????? | | ????????????# ????????????????????????????????? | | ????????????# ????????????????????????????????? | | ????????????# ????????????????????????????????? | | ????????????#####????????????????????????????????? | | ?????????????????????????????????????????????????? | | ?????????????????????????????????????????????????? | | ?????????????????????????????????????????????????? | | ?????????????????????????????????????????????????? | | ?????????????????????????????????????????????????? | | ?????????????????????????????????????????????????? | | ?????????????????????????????????????????????????? | | ?????????????????????????????????????????????????? | | ?????????????????????????????????????????????????? | | ?????????????????????????????????????????????????? | +----------------------------------------------------+ Best States ------------- Heat Dissipation 38 Energy Generation 12 Energy Capacity 265 Matter Stores 300 Matter Capacity 300 Sight Range 16 Robot Scan Range 14 Terrain Scan Density 10 Armor Coverage 150 Evasion (%) 55 Targeting Accuracy 6 Item Schematics ----------------- None Robot Schematics ------------------ T-07 Excavator | -9/Storage | Hacked Fabricated ------------ Nothing Repaired ---------- Aluminum Leg | 62% | -10/Materials Studied --------- None Alien Tech Used ----------------- None Achievements -------------- None Challenges ------------ None Game ------ Seed CryofiberInterceptScanner Manual? 0 Play Time 00:25:51 Cumulative 3.8 hours Start 2025.10.29 @ 18:47:22 End 2025.10.29 @ 19:11:14 Sessions 1 Manual Loads 0 Difficulty Rogue Special Mode None Game No. 10 Rogue 10 Adventurer 0 Explorer 0 Win Type - Total 0 Types 0/0/0/0/0/0/0/0/0/0 Lore% 7 Gallery% 8 Achievement% 8 Wizard Run 0 Options --------- Layout 1 ASCII 0 Keyboard 0 Movement Mouse Keybinds 0 Fullscreen 1 Font 24/Smallcaps Map View 50x35 Zoom Use 0% Tactical HUD 1 Map Filters NONE Filters NONE Steam 1 RUN: cea487cd-1f3d-4ea6-a204-e391addc56ab